[Event "26th Zadar Open 2019"]
[Site "Zadar"]
[Date "2019.12.15"]
[Round "1.14"]
[White "Hnydiuk, Aleksander"]
[Black "Gelbenegger, Patrick"]
[Result "1-0"]
[ECO "E04"]
[WhiteElo "2423"]
[BlackElo "2267"]
[Annotator "NA"]
[PlyCount "65"]
[EventDate "2019.12.15"]
[EventType "swiss"]
[EventCountry "CRO"]
[SourceTitle "playchess.com"]
[Source "ChessBase"]
[SourceQuality "1"]
[TimeControl "40/5400+30:1800+30"]

1. Nf3 {[%emt 0:01:30]} Nf6 {[%emt 0:00:30]} 2. c4 {[%emt 0:00:00]} e6 {[%emt 0:00:30]} 3. g3 {[%emt 0:00:00]} d5 {[%emt 0:00:30]} 4. d4 {[%emt 0:00:30]} c6 {[%emt 0:01:30]} 5. Bg2 {[%emt 0:00:30]} Nbd7 {[%emt 0:01:30]} 6. O-O {[%emt 0:00:00]} dxc4 {[%emt 0:05:30]} 7. a4 {[%emt 0:00:00]} Nd5 {[%emt 0:03:30]} 8. e4 {[%emt 0:06:30]} Nb4 {[%emt 0:02:30]} 9. Na3 {[%emt 0:00:30]} a5 {[%emt 0:06:30]} 10. Bg5 {[%emt 0:06:30]} Be7 {[%emt 0:14:30]} 11. Bxe7 {[%emt 0:00:30]} Qxe7 {[%emt 0:00:30]} 12. Nxc4 {[%emt 0:00:30]} O-O {[%emt 0:02:30]} 13. Re1 {[%emt 0:06:30]} Nf6 {[%emt 0:04:30]} 14. Qd2 {[%emt 0:14:30]} Rd8 {[%emt 0:09:30]} 15. Qc3 {[%emt 0:01:30]} Qc7 {[%emt 0:02:30]} 16. Na3 {[%emt 0:24:30]} Qb6 {[%emt 0:13:30]} 17. Nc2 {[%emt 0:02:30]} Nxc2 {[%emt 0:02:30]} 18. Qxc2 {[%emt 0:00:30]} Bd7 {[%emt 0:00:30]} 19. Rad1 {[%emt 0:11:30]} Rac8 {[%emt 0:01:30]} 20. e5 {[%emt 0:01:30]} Nd5 {[%emt 0:03:30]} 21. Ng5 {[%emt 0:00:30]} g6 {[%emt 0:11:18]} 22. Ne4 {[%emt 0:00:30]} Kg7 {[%emt 0:00:16]} 23. Nd6 {[%emt 0:05:11]} Rc7 {[%emt 0:00:55]} 24. Qd2 {[%emt 0:01:08]} Nb4 {[%emt 0:02:57]} 25. Qg5 {[%emt 0:03:10]} Rf8 {[%emt 0:00:27]} 26. Qf6+ {[%emt 0:01:28]} Kg8 {[%emt 0:00:14]} 27. h4 {[%emt 0:00:07]} h5 {[%emt 0:02:21]} 28. g4 {[%emt 0:00:14]} Nd5 {[%emt 0:03:52]} 29. Bxd5 {[%emt 0:00:06]} exd5 {[%emt 0:00:08]} 30. gxh5 {[%emt 0:00:24]} gxh5 {[%emt 0:00:17]} 31. Qg5+ {[%emt 0:00:32]} Kh7 {[%emt 0:00:29]} 32. Qxh5+ {[%emt 0:00:06]} Kg7 {[%emt 0:00:52]} 33. Kh2 {[%emt 0:00:39]} 1-0

[Event "26th Zadar Open 2019"]
[Site "Zadar"]
[Date "2019.12.15"]
[Round "1.15"]
[White "Krasteva, Beloslava"]
[Black "Rezan, Sasa"]
[Result "1/2-1/2"]
[ECO "E48"]
[WhiteElo "2264"]
[BlackElo "2415"]
[Annotator "NA"]
[PlyCount "103"]
[EventDate "2019.12.15"]
[EventType "swiss"]
[EventCountry "CRO"]
[SourceTitle "playchess.com"]
[Source "ChessBase"]
[SourceQuality "1"]
[TimeControl "40/5400+30:1800+30"]

1. d4 {[%emt 0:00:30]} Nf6 {[%emt 0:00:30]} 2. c4 {[%emt 0:00:00]} e6 {[%emt 0:00:00]} 3. Nc3 {[%emt 0:00:00]} Bb4 {[%emt 0:00:00]} 4. e3 {[%emt 0:00:30]} O-O {[%emt 0:01:30]} 5. Bd3 {[%emt 0:00:30]} d5 {[%emt 0:02:30]} 6. cxd5 {[%emt 0:00:30]} exd5 {[%emt 0:00:30]} 7. Nge2 {[%emt 0:00:30]} Re8 {[%emt 0:00:30]} 8. Bd2 {[%emt 0:00:30]} a6 {[%emt 0:06:30]} 9. O-O {[%emt 0:03:30]} Bf8 {[%emt 0:04:30]} 10. Rc1 {[%emt 0:02:30]} b6 {[%emt 0:03:30]} 11. Nf4 {[%emt 0:03:30]} Bb7 {[%emt 0:01:30]} 12. Re1 {[%emt 0:02:30]} Qd6 {[%emt 0:12:30]} 13. Bf1 {[%emt 0:12:30]} Nbd7 {[%emt 0:08:30]} 14. g3 {[%emt 0:11:30]} c5 {[%emt 0:03:30]} 15. Bg2 {[%emt 0:03:30]} Rac8 {[%emt 0:04:30]} 16. Qb3 {[%emt 0:18:30]} c4 {[%emt 0:07:30]} 17. Qc2 {[%emt 0:02:30]} b5 {[%emt 0:00:30]} 18. a3 {[%emt 0:01:30]} g6 {[%emt 0:05:30]} 19. Rcd1 {[%emt 0:02:30]} Bh6 {[%emt 0:04:30]} 20. f3 {[%emt 0:08:30]} Nb8 {[%emt 0:19:46]} 21. Bc1 {[%emt 0:09:50]} b4 {[%emt 0:03:10]} 22. axb4 {[%emt 0:02:07]} Nc6 {[%emt 0:00:11]} 23. b5 {[%emt 0:04:30]} Nb4 {[%emt 0:00:31]} 24. Qd2 {[%emt 0:01:37]} Bxf4 {[%emt 0:01:00]} 25. gxf4 {[%emt 0:01:48]} Nd3 {[%emt 0:00:38]} 26. Re2 {[%emt 0:00:56]} Re7 {[%emt 0:01:17]} 27. Bf1 {[%emt 0:03:38]} Rce8 {[%emt 0:03:15]} 28. Qc2 {[%emt 0:00:30]} Qb6 {[%emt 0:01:08]} 29. bxa6 {[%emt 0:01:23]} Bxa6 {[%emt 0:00:10]} 30. Na4 {[%emt 0:00:42]} Qd6 {[%emt 0:01:52]} 31. Nc5 {[%emt 0:00:16]} Bb5 {[%emt 0:01:30]} 32. Bd2 {[%emt 0:00:57]} Nxf4 {[%emt 0:00:36]} 33. Ree1 {[%emt 0:00:55]} Nd3 {[%emt 0:01:47]} 34. Nxd3 {[%emt 0:00:35]} cxd3 {[%emt 0:00:01]} 35. Bxd3 {[%emt 0:00:00]} Bxd3 {[%emt 0:01:23]} 36. Qxd3 {[%emt 0:00:10]} Nh5 {[%emt 0:00:20]} 37. Qf1 {[%emt 0:00:42]} Qf6 {[%emt 0:00:31]} 38. Qg2 {[%emt 0:00:55]} Ng7 {[%emt 0:00:27]} 39. Qf2 {[%emt 0:00:58]} Nf5 {[%emt 0:00:14]} 40. Kh1 {[%emt 0:00:27]} Nd6 {[%emt 0:01:03]} 41. Bb4 {[%emt 0:30:33]} Rb7 {[%emt 0:30:32]} 42. Bxd6 {[%emt 0:00:18]} Qxd6 {[%emt 0:00:01]} 43. e4 {[%emt 0:00:59]} Qb4 {[%emt 0:00:00]} 44. Re2 {[%emt 0:00:00]} Qa4 {[%emt 0:00:00]} 45. Rde1 {[%emt 0:00:00]} Rb4 {[%emt 0:00:00]} 46. exd5 {[%emt 0:00:00]} Rxe2 {[%emt 0:00:00]} 47. Qxe2 {[%emt 0:00:00]} Rxd4 {[%emt 0:00:00]} 48. Qe5 {[%emt 0:00:00]} Rd2 {[%emt 0:00:00]} 49. Qb8+ {[%emt 0:00:00]} Kg7 {[%emt 0:00:00]} 50. Qe5+ {[%emt 0:00:00]} Kg8 {[%emt 0:00:00]} 51. Qb8+ {[%emt 0:03:40]} Kg7 {[%emt 0:00:00]} 52. Qe5+ {[%emt 0:00:24]} 1/2-1/2

[Event "26th Zadar Open 2019"]
[Site "Zadar"]
[Date "2019.12.15"]
[Round "1.16"]
[White "Nguyen, Piotr"]
[Black "Deglmann, Ludwig"]
[Result "1/2-1/2"]
[ECO "A87"]
[WhiteElo "2413"]
[BlackElo "2261"]
[Annotator "NA"]
[PlyCount "67"]
[EventDate "2019.12.15"]
[EventType "swiss"]
[EventCountry "CRO"]
[SourceTitle "playchess.com"]
[Source "ChessBase"]
[SourceQuality "1"]
[TimeControl "40/5400+30:1800+30"]

1. Nf3 {[%emt 0:00:30]} f5 {[%emt 0:00:30]} 2. g3 {[%emt 0:00:30]} Nf6 {[%emt 0:00:30]} 3. Bg2 {[%emt 0:00:30]} g6 {[%emt 0:00:30]} 4. d4 {[%emt 0:01:30]} Bg7 {[%emt 0:00:30]} 5. O-O {[%emt 0:00:00]} O-O {[%emt 0:00:00]} 6. c4 {[%emt 0:05:00]} c6 {[%emt 0:03:00]} 7. Nc3 {[%emt 0:01:30]} Na6 {[%emt 0:01:30]} 8. Ne5 {[%emt 0:11:30]} d6 {[%emt 0:16:30]} 9. Nd3 {[%emt 0:00:00]} e5 {[%emt 0:01:30]} 10. dxe5 {[%emt 0:04:00]} dxe5 {[%emt 0:00:30]} 11. Nxe5 {[%emt 0:00:30]} Ne4 {[%emt 0:01:30]} 12. f4 {[%emt 0:15:30]} Qb6+ {[%emt 0:12:30]} 13. e3 {[%emt 0:00:00]} Rd8 {[%emt 0:04:30]} 14. Qe1 {[%emt 0:15:00]} Nac5 {[%emt 0:04:30]} 15. Nxe4 {[%emt 0:01:30]} fxe4 {[%emt 0:01:30]} 16. Rb1 {[%emt 0:04:30]} Nd3 {[%emt 0:08:30]} 17. Nxd3 {[%emt 0:00:30]} exd3 {[%emt 0:00:30]} 18. b3 {[%emt 0:07:30]} Bf5 {[%emt 0:07:30]} 19. Bd2 {[%emt 0:01:30]} Re8 {[%emt 0:03:30]} 20. Qf2 {[%emt 0:00:30]} a5 {[%emt 0:13:41]} 21. Kh1 {[%emt 0:03:30]} Bf8 {[%emt 0:03:05]} 22. h3 {[%emt 0:05:30]} Bb4 {[%emt 0:02:27]} 23. Rbe1 {[%emt 0:02:56]} Be4 {[%emt 0:02:08]} 24. g4 {[%emt 0:01:05]} Qc5 {[%emt 0:02:42]} 25. f5 {[%emt 0:11:29]} Qe5 {[%emt 0:01:45]} 26. f6 {[%emt 0:02:39]} Rf8 {[%emt 0:01:28]} 27. f7+ {[%emt 0:00:53]} Kg7 {[%emt 0:01:22]} 28. Bxe4 {[%emt 0:03:17]} Qxe4+ {[%emt 0:00:05]} 29. Kg1 {[%emt 0:00:00]} Bxd2 {[%emt 0:01:10]} 30. Qf6+ {[%emt 0:01:10]} Kh6 {[%emt 0:00:04]} 31. Qh4+ {[%emt 0:00:02]} Kg7 {[%emt 0:00:04]} 32. Qf6+ {[%emt 0:00:00]} Kh6 {[%emt 0:00:04]} 33. Qh4+ {[%emt 0:01:13]} Kg7 {[%emt 0:00:06]} 34. Qf6+ {[%emt 0:00:02]} 1/2-1/2

[Event "26th Zadar Open 2019"]
[Site "Zadar"]
[Date "2019.12.15"]
[Round "1.17"]
[White "Sahil, Tickoo"]
[Black "Moksh Amit Doshi"]
[Result "0-1"]
[ECO "A48"]
[WhiteElo "2259"]
[BlackElo "2399"]
[Annotator "NA"]
[PlyCount "92"]
[EventDate "2019.12.15"]
[EventType "swiss"]
[EventCountry "CRO"]
[SourceTitle "playchess.com"]
[Source "ChessBase"]
[SourceQuality "1"]
[TimeControl "40/5400+30:1800+30"]

1. d4 {[%emt 0:00:30]} Nf6 {[%emt 0:01:30]} 2. Bf4 {[%emt 0:00:30]} b6 {[%emt 0:01:30]} 3. e3 {[%emt 0:02:30]} Bb7 {[%emt 0:00:30]} 4. Nd2 {[%emt 0:01:30]} g6 {[%emt 0:00:30]} 5. Ngf3 {[%emt 0:00:30]} d6 {[%emt 0:01:30]} 6. h3 {[%emt 0:06:30]} Bg7 {[%emt 0:00:00]} 7. Bd3 {[%emt 0:00:30]} O-O {[%emt 0:00:00]} 8. O-O {[%emt 0:00:00]} Nbd7 {[%emt 0:00:30]} 9. Bh2 {[%emt 0:01:00]} Re8 {[%emt 0:01:30]} 10. e4 {[%emt 0:05:30]} e5 {[%emt 0:01:30]} 11. d5 {[%emt 0:01:30]} Nc5 {[%emt 0:02:30]} 12. Bb5 {[%emt 0:00:30]} Rf8 {[%emt 0:03:30]} 13. Re1 {[%emt 0:00:00]} a6 {[%emt 0:02:30]} 14. Bf1 {[%emt 0:00:00]} Ne8 {[%emt 0:02:30]} 15. b4 {[%emt 0:05:30]} Nd7 {[%emt 0:00:00]} 16. a4 {[%emt 0:02:30]} f5 {[%emt 0:02:00]} 17. a5 {[%emt 0:08:30]} f4 {[%emt 0:03:30]} 18. c4 {[%emt 0:03:30]} g5 {[%emt 0:00:30]} 19. Nb3 {[%emt 0:00:30]} Rf7 {[%emt 0:07:30]} 20. axb6 {[%emt 0:04:30]} cxb6 {[%emt 0:00:00]} 21. c5 {[%emt 0:02:30]} dxc5 {[%emt 0:01:00]} 22. bxc5 {[%emt 0:00:00]} Nxc5 {[%emt 0:00:30]} 23. Nxc5 {[%emt 0:00:00]} bxc5 {[%emt 0:00:30]} 24. Nd2 {[%emt 0:06:30]} a5 {[%emt 0:04:30]} 25. Nc4 {[%emt 0:04:30]} Ba6 {[%emt 0:01:30]} 26. Nxa5 {[%emt 0:09:30]} Bxf1 {[%emt 0:00:30]} 27. Nc6 {[%emt 0:00:00]} Rxa1 {[%emt 0:00:30]} 28. Qxa1 {[%emt 0:01:00]} Qc8 {[%emt 0:02:30]} 29. Kxf1 {[%emt 0:27:41]} f3 {[%emt 0:04:30]} 30. Re3 {[%emt 0:01:26]} g4 {[%emt 0:01:30]} 31. h4 {[%emt 0:04:51]} Nd6 {[%emt 0:01:30]} 32. Rb3 {[%emt 0:01:22]} Rb7 {[%emt 0:01:30]} 33. Rxb7 {[%emt 0:00:29]} Qxb7 {[%emt 0:00:30]} 34. Bxe5 {[%emt 0:00:28]} Nxe4 {[%emt 0:01:30]} 35. Bxg7 {[%emt 0:00:15]} Qb5+ {[%emt 0:02:30]} 36. Kg1 {[%emt 0:00:01]} Qe2 {[%emt 0:00:30]} 37. Bd4 {[%emt 0:01:20]} cxd4 {[%emt 0:00:00]} 38. Qxd4 {[%emt 0:00:29]} Qe1+ {[%emt 0:00:00]} 39. Kh2 {[%emt 0:00:04]} g3+ {[%emt 0:00:30]} 40. Kh3 {[%emt 0:00:36]} gxf2 {[%emt 0:00:30]} 41. Ne7+ {[%emt 0:30:45]} Kf7 {[%emt 0:30:30]} 42. Nf5 {[%emt 0:00:37]} Qh1+ {[%emt 0:01:30]} 43. Kg4 {[%emt 0:00:02]} Nf6+ {[%emt 0:00:00]} 44. Kf4 {[%emt 0:00:00]} Qc1+ {[%emt 0:00:00]} 45. Kg3 {[%emt 0:00:00]} f1=Q {[%emt 0:00:00]} 46. Nd6+ {[%emt 0:00:00]} Kg8 {[%emt 0:00:00]} 0-1

[Event "26th Zadar Open 2019"]
[Site "Zadar"]
[Date "2019.12.15"]
[Round "1.18"]
[White "Bukal, Vladimir Jr."]
[Black "Zelic, Mladen"]
[Result "1-0"]
[ECO "D00"]
[WhiteElo "2393"]
[BlackElo "2254"]
[Annotator "NA"]
[PlyCount "65"]
[EventDate "2019.12.15"]
[EventType "swiss"]
[EventCountry "CRO"]
[SourceTitle "playchess.com"]
[Source "ChessBase"]
[SourceQuality "1"]
[TimeControl "40/5400+30:1800+30"]

1. d4 {[%emt 0:00:30]} Nf6 {[%emt 0:00:30]} 2. Nf3 {[%emt 0:00:30]} g6 {[%emt 0:00:00]} 3. Nc3 {[%emt 0:00:30]} d5 {[%emt 0:01:00]} 4. Bf4 {[%emt 0:00:30]} Bg7 {[%emt 0:00:30]} 5. e3 {[%emt 0:00:00]} O-O {[%emt 0:02:30]} 6. h3 {[%emt 0:00:00]} c5 {[%emt 0:07:30]} 7. Ne5 {[%emt 0:04:30]} Nc6 {[%emt 0:07:30]} 8. Be2 {[%emt 0:05:30]} cxd4 {[%emt 0:11:30]} 9. exd4 {[%emt 0:07:30]} Qb6 {[%emt 0:00:30]} 10. Nxc6 {[%emt 0:00:30]} bxc6 {[%emt 0:05:30]} 11. Na4 {[%emt 0:02:30]} Qa5+ {[%emt 0:05:30]} 12. c3 {[%emt 0:00:00]} Ba6 {[%emt 0:00:30]} 13. Nc5 {[%emt 0:04:00]} Bxe2 {[%emt 0:09:30]} 14. Qxe2 {[%emt 0:00:30]} Rfe8 {[%emt 0:09:30]} 15. O-O {[%emt 0:00:30]} Nh5 {[%emt 0:02:30]} 16. Bh2 {[%emt 0:13:30]} e5 {[%emt 0:00:00]} 17. b4 {[%emt 0:03:30]} Qa3 {[%emt 0:06:00]} 18. dxe5 {[%emt 0:00:30]} Qxc3 {[%emt 0:07:30]} 19. Nd3 {[%emt 0:00:30]} Rac8 {[%emt 0:01:30]} 20. Qf3 {[%emt 0:05:30]} f6 {[%emt 0:07:17]} 21. Rac1 {[%emt 0:08:30]} Qd4 {[%emt 0:00:17]} 22. Rfd1 {[%emt 0:06:30]} Qe4 {[%emt 0:03:03]} 23. Qxe4 {[%emt 0:01:30]} dxe4 {[%emt 0:00:07]} 24. Nc5 {[%emt 0:00:30]} Bh6 {[%emt 0:01:25]} 25. Rc3 {[%emt 0:11:30]} f5 {[%emt 0:01:35]} 26. g4 {[%emt 0:10:44]} Nf4 {[%emt 0:01:55]} 27. Bxf4 {[%emt 0:00:06]} Bxf4 {[%emt 0:00:02]} 28. e6 {[%emt 0:00:04]} Rcd8 {[%emt 0:04:35]} 29. Rd7 {[%emt 0:00:39]} Bd6 {[%emt 0:00:27]} 30. Rxd8 {[%emt 0:02:57]} Rxd8 {[%emt 0:00:29]} 31. Nb7 {[%emt 0:00:06]} Bxb4 {[%emt 0:02:03]} 32. Nxd8 {[%emt 0:00:08]} Bxc3 {[%emt 0:00:18]} 33. e7 {[%emt 0:00:05]} 1-0

[Event "26th Zadar Open 2019"]
[Site "Zadar"]
[Date "2019.12.15"]
[Round "1.19"]
[White "Chan, Kim Yew"]
[Black "Lye, Lik Zang"]
[Result "1/2-1/2"]
[ECO "A09"]
[WhiteElo "2245"]
[BlackElo "2379"]
[Annotator "NA"]
[PlyCount "179"]
[EventDate "2019.12.15"]
[EventType "swiss"]
[EventCountry "CRO"]
[SourceTitle "playchess.com"]
[Source "ChessBase"]
[SourceQuality "1"]
[TimeControl "40/5400+30:1800+30"]

1. Nf3 {[%emt 0:51:30]} d5 {[%emt 0:33:30]} 2. c4 {[%emt 0:00:30]} d4 {[%emt 0:01:30]} 3. b4 {[%emt 0:00:30]} c5 {[%emt 0:00:30]} 4. e3 {[%emt 0:00:30]} Nf6 {[%emt 0:00:30]} 5. bxc5 {[%emt 0:00:30]} Nc6 {[%emt 0:00:30]} 6. exd4 {[%emt 0:00:30]} Nxd4 {[%emt 0:00:30]} 7. Bb2 {[%emt 0:00:30]} e5 {[%emt 0:00:30]} 8. Nxd4 {[%emt 0:00:30]} exd4 {[%emt 0:00:30]} 9. d3 {[%emt 0:00:30]} Bxc5 {[%emt 0:05:30]} 10. Be2 {[%emt 0:01:30]} O-O {[%emt 0:00:30]} 11. O-O {[%emt 0:00:30]} Bf5 {[%emt 0:00:30]} 12. Nd2 {[%emt 0:00:30]} Re8 {[%emt 0:01:30]} 13. Nb3 {[%emt 0:02:30]} b6 {[%emt 0:03:30]} 14. Qd2 {[%emt 0:10:30]} Qd6 {[%emt 0:03:30]} 15. Nxc5 {[%emt 0:00:30]} bxc5 {[%emt 0:00:30]} 16. Rfe1 {[%emt 0:02:30]} Rab8 {[%emt 0:04:30]} 17. Ba3 {[%emt 0:03:30]} Nd7 {[%emt 0:02:30]} 18. Qa5 {[%emt 0:01:30]} Qb6 {[%emt 0:08:30]} 19. Qa4 {[%emt 0:10:35]} Ne5 {[%emt 0:05:30]} 20. Rab1 {[%emt 0:03:03]} Qxb1 {[%emt 0:13:48]} 21. Qxe8+ {[%emt 0:00:21]} Rxe8 {[%emt 0:00:05]} 22. Rxb1 {[%emt 0:00:00]} Nxd3 {[%emt 0:01:25]} 23. Bxd3 {[%emt 0:02:20]} Bxd3 {[%emt 0:00:05]} 24. Rc1 {[%emt 0:00:58]} Bxc4 {[%emt 0:01:07]} 25. Bxc5 {[%emt 0:00:13]} d3 {[%emt 0:00:19]} 26. Be3 {[%emt 0:02:37]} Bxa2 {[%emt 0:00:06]} 27. Ra1 {[%emt 0:00:31]} Bb3 {[%emt 0:07:49]} 28. Rxa7 {[%emt 0:00:41]} f5 {[%emt 0:00:19]} 29. Rd7 {[%emt 0:01:58]} f4 {[%emt 0:01:44]} 30. Bd2 {[%emt 0:00:01]} Bc4 {[%emt 0:01:47]} 31. h4 {[%emt 0:01:02]} f3 {[%emt 0:01:41]} 32. gxf3 {[%emt 0:00:52]} Re2 {[%emt 0:00:22]} 33. Be3 {[%emt 0:01:05]} Kf8 {[%emt 0:00:42]} 34. Kg2 {[%emt 0:00:39]} Ke8 {[%emt 0:00:30]} 35. Rd4 {[%emt 0:00:01]} Bb5 {[%emt 0:00:17]} 36. Rd5 {[%emt 0:00:47]} Ba6 {[%emt 0:00:27]} 37. Rd6 {[%emt 0:00:28]} Ra2 {[%emt 0:00:04]} 38. Kg3 {[%emt 0:00:04]} Ke7 {[%emt 0:00:13]} 39. Rd4 {[%emt 0:00:42]} Ke6 {[%emt 0:00:38]} 40. Kf4 {[%emt 0:00:27]} Ra1 {[%emt 0:00:58]} 41. Rd8 {[%emt 0:31:06]} Ra4+ {[%emt 0:01:34]} 42. Kg3 {[%emt 0:00:00]} Bc4 {[%emt 0:05:30]} 43. Rd4 {[%emt 0:00:00]} Bb5 {[%emt 0:04:30]} 44. Rxa4 {[%emt 0:00:00]} Bxa4 {[%emt 0:00:30]} 45. Kf4 {[%emt 0:00:00]} Kd5 {[%emt 0:00:30]} 46. Bc1 {[%emt 0:00:00]} Kd4 {[%emt 0:01:34]} 47. Bb2+ {[%emt 0:00:00]} Kc4 {[%emt 0:00:26]} 48. Ke3 {[%emt 0:00:00]} Kb3 {[%emt 0:00:30]} 49. Bc1 {[%emt 0:00:00]} Kc2 {[%emt 0:00:30]} 50. Bd2 {[%emt 0:00:00]} Bc6 {[%emt 0:00:30]} 51. f4 {[%emt 0:00:00]} Be4 {[%emt 0:00:30]} 52. Ba5 {[%emt 0:00:00]} Bf5 {[%emt 0:00:30]} 53. Bb4 {[%emt 0:00:00]} Kb3 {[%emt 0:00:30]} 54. Ba5 {[%emt 0:00:00]} Kc4 {[%emt 0:00:30]} 55. Bd2 {[%emt 0:00:00]} Kd5 {[%emt 0:00:00]} 56. Bc3 {[%emt 0:00:00]} g6 {[%emt 0:00:00]} 57. Ba5 {[%emt 0:00:00]} Kc4 {[%emt 0:00:30]} 58. Bd2 {[%emt 0:00:00]} Bc8 {[%emt 0:00:30]} 59. Ba5 {[%emt 0:00:00]} Ba6 {[%emt 0:00:00]} 60. Bd2 {[%emt 0:00:00]} Kd5 {[%emt 0:00:00]} 61. Bc3 {[%emt 0:00:00]} Bb5 {[%emt 0:00:30]} 62. Ba5 {[%emt 0:00:00]} Ke6 {[%emt 0:02:30]} 63. Bb4 {[%emt 0:00:00]} Kf5 {[%emt 0:00:30]} 64. f3 {[%emt 0:00:00]} Ke6 {[%emt 0:00:30]} 65. Ba5 {[%emt 0:00:00]} Kd5 {[%emt 0:00:33]} 66. Bc3 {[%emt 0:00:00]} Kc4 {[%emt 0:00:27]} 67. Ba5 {[%emt 0:00:00]} Kb3 {[%emt 0:00:30]} 68. Be1 {[%emt 0:00:00]} Kc2 {[%emt 0:00:00]} 69. Ba5 {[%emt 0:00:00]} Bc6 {[%emt 0:00:00]} 70. Bb4 {[%emt 0:00:00]} Kb3 {[%emt 0:01:30]} 71. Be1 {[%emt 0:00:00]} Kc4 {[%emt 0:00:00]} 72. Ba5 {[%emt 0:00:00]} Bb5 {[%emt 0:00:00]} 73. Be1 {[%emt 0:00:00]} Kd5 {[%emt 0:00:00]} 74. Ba5 {[%emt 0:00:00]} Ke6 {[%emt 0:00:00]} 75. Bb4 {[%emt 0:00:00]} Kf6 {[%emt 0:00:00]} 76. Bc3+ {[%emt 0:00:00]} Kf7 {[%emt 0:00:00]} 77. Bd4 {[%emt 0:00:00]} Bc6 {[%emt 0:00:30]} 78. Bc3 {[%emt 0:00:00]} Bb7 {[%emt 0:00:00]} 79. Bd4 {[%emt 0:00:00]} d2 {[%emt 0:00:00]} 80. Kxd2 {[%emt 0:00:00]} Bxf3 {[%emt 0:00:30]} 81. Ke3 {[%emt 0:00:00]} Bb7 {[%emt 0:00:00]} 82. Bb6 {[%emt 0:00:00]} Kf6 {[%emt 0:00:00]} 83. Bd8+ {[%emt 0:00:00]} Kf5 {[%emt 0:00:30]} 84. Bg5 {[%emt 0:00:00]} Kg4 {[%emt 0:00:00]} 85. Bd8 {[%emt 0:00:00]} h6 {[%emt 0:00:00]} 86. Be7 {[%emt 0:00:00]} Bc6 {[%emt 0:00:00]} 87. Bd8 {[%emt 0:00:00]} Bb7 {[%emt 0:00:00]} 88. Be7 {[%emt 0:00:00]} Bc6 {[%emt 0:00:30]} 89. Bd8 {[%emt 0:00:00]} Bb7 {[%emt 0:00:00]} 90. Be7 {[%emt 0:00:00]} 1/2-1/2

[Event "26th Zadar Open 2019"]
[Site "Zadar"]
[Date "2019.12.15"]
[Round "1.22"]
[White "Plenkovic, Zdenko"]
[Black "Mitev, Valentin"]
[Result "0-1"]
[ECO "B61"]
[WhiteElo "2355"]
[BlackElo "2233"]
[Annotator "NA"]
[PlyCount "138"]
[EventDate "2019.12.15"]
[EventType "swiss"]
[EventCountry "CRO"]
[SourceTitle "playchess.com"]
[Source "ChessBase"]
[SourceQuality "1"]
[TimeControl "40/5400+30:1800+30"]

1. e4 c5 2. Nf3 d6 3. d4 Nf6 {[%emt 0:00:30]} 4. Nc3 {[%emt 0:01:00]} cxd4 {[%emt 0:00:00]} 5. Nxd4 {[%emt 0:00:30]} Nc6 {[%emt 0:00:00]} 6. Bg5 {[%emt 0:06:30]} Bd7 {[%emt 0:00:30]} 7. Qd2 {[%emt 0:05:30]} Rc8 {[%emt 0:00:00]} 8. Be2 {[%emt 0:15:30]} Nxd4 {[%emt 0:00:00]} 9. Qxd4 {[%emt 0:02:30]} Qa5 {[%emt 0:00:30]} 10. Bd2 {[%emt 0:01:30]} e5 {[%emt 0:06:30]} 11. Qd3 {[%emt 0:06:30]} Qc7 {[%emt 0:01:30]} 12. O-O {[%emt 0:02:30]} a6 {[%emt 0:06:30]} 13. a4 {[%emt 0:05:30]} Be7 {[%emt 0:03:30]} 14. Qg3 {[%emt 0:03:30]} Be6 {[%emt 0:10:30]} 15. Qxg7 {[%emt 0:08:30]} Rg8 {[%emt 0:00:30]} 16. Qh6 {[%emt 0:00:30]} Rg6 {[%emt 0:06:30]} 17. Qe3 {[%emt 0:00:00]} d5 {[%emt 0:01:30]} 18. exd5 {[%emt 0:01:00]} Nxd5 {[%emt 0:00:00]} 19. Nxd5 {[%emt 0:02:30]} Bxd5 {[%emt 0:00:00]} 20. Bf3 {[%emt 0:00:30]} Bg5 {[%emt 0:01:30]} 21. Bxd5 {[%emt 0:12:30]} Bxe3 {[%emt 0:00:30]} 22. fxe3 {[%emt 0:00:00]} Rg7 {[%emt 0:11:30]} 23. c4 {[%emt 0:01:00]} Rd8 {[%emt 0:02:30]} 24. Rac1 {[%emt 0:09:23]} Rxd5 {[%emt 0:08:30]} 25. cxd5 {[%emt 0:00:16]} Qd6 {[%emt 0:00:30]} 26. e4 {[%emt 0:08:19]} Qg6 {[%emt 0:01:30]} 27. Rf2 {[%emt 0:00:34]} Qxe4 {[%emt 0:00:30]} 28. Re1 {[%emt 0:01:41]} Qxd5 {[%emt 0:03:30]} 29. Bc3 {[%emt 0:04:12]} f6 {[%emt 0:00:30]} 30. g3 {[%emt 0:00:03]} Qc5 {[%emt 0:05:30]} 31. Kf1 {[%emt 0:02:05]} Qc6 {[%emt 0:01:30]} 32. Kg1 {[%emt 0:00:11]} h5 {[%emt 0:19:44]} 33. Rxf6 {[%emt 0:01:08]} Qxf6 {[%emt 0:00:40]} 34. Bxe5 {[%emt 0:00:30]} Re7 {[%emt 0:00:49]} 35. Bxf6 {[%emt 0:00:30]} Rxe1+ {[%emt 0:00:45]} 36. Kg2 {[%emt 0:00:30]} Ra1 {[%emt 0:01:49]} 37. Kf2 {[%emt 0:00:30]} Rxa4 {[%emt 0:00:40]} 38. Bc3 {[%emt 0:00:30]} Kd7 {[%emt 0:00:38]} 39. Ke3 {[%emt 0:00:30]} Ke6 {[%emt 0:00:37]} 40. h3 {[%emt 0:00:30]} Kd5 {[%emt 0:00:00]} 41. Kf3 {[%emt 0:30:42]} Rc4 42. g4 hxg4+ 43. hxg4 Ke6 44. g5 Kf5 45. Bf6 Rb4 46. Ke3 Rb3+ 47. Kd2 Rg3 48. Kc2 Ke4 49. b3 Kd5 50. Bd8 Kc6 51. Be7 Kb5 52. Bf6 a5 53. Be7 a4 54. bxa4+ Kxa4 55. Kb2 b5 56. Kc2 b4 57. Kd2 b3 58. Kc1 Rg2 59. Kb1 Re2 60. Bf8 Re8 61. Bd6 Rg8 62. Be7 Rg7 63. Bf6 Rd7 64. g6 Ka3 65. Bb2+ Kb4 66. Be5 Rd2 67. g7 Ka3 68. Kc1 Rg2 69. Bd4 Ka2 0-1